[Event "World Team-ch Women 2017"]
[Site "Khanty-Mansyisk"]
[Date "2017.06.25"]
[Round "8"]
[White "Hoang, Thi Bao Tram"]
[Black "Tania, Sachdev"]
[Result "1/2-1/2"]
[ECO "A46"]
[WhiteElo "2380"]
[BlackElo "2408"]
[Annotator "NA"]
[PlyCount "157"]
[EventDate "2017.??.??"]
[EventType "team-tourn"]
[EventCountry "RUS"]
[SourceTitle "playchess.com"]
[Source "ChessBase"]
[SourceQuality "1"]
[WhiteTeam "VIE"]
[BlackTeam "IND"]
[WhiteTeamCountry "VIE"]
[BlackTeamCountry "IND"]
[TimeControl "40/5400+30:1800+30"]

1. d4 {[%emt 0:00:00]} Nf6 {[%emt 0:00:04]} 2. Nf3 {[%emt 0:00:25]} e6 {[%emt 0:00:05]} 3. Bf4 {[%emt 0:01:13]} b6 {[%emt 0:00:51]} 4. e3 {[%emt 0:00:45]} Bb7 {[%emt 0:00:39]} 5. Nbd2 {[%emt 0:00:43]} Be7 {[%emt 0:00:48]} 6. Bd3 {[%emt 0:00:18]} c5 {[%emt 0:01:59]} 7. c3 {[%emt 0:02:08]} O-O {[%emt 0:02:20]} 8. h3 {[%emt 0:03:13]} d6 {[%emt 0:02:10]} 9. O-O {[%emt 0:02:13]} cxd4 {[%emt 0:07:23]} 10. exd4 {[%emt 0:00:21]} Nbd7 {[%emt 0:00:07]} 11. Qe2 {[%emt 0:05:50]} Re8 {[%emt 0:03:34]} 12. Rfe1 {[%emt 0:02:25]} Qc7 {[%emt 0:08:00]} 13. Bh2 {[%emt 0:02:00]} Nf8 {[%emt 0:04:02]} 14. Ng5 {[%emt 0:03:44]} h6 {[%emt 0:09:35]} 15. Nge4 {[%emt 0:01:06]} Nxe4 {[%emt 0:06:15]} 16. Nxe4 {[%emt 0:00:55]} Nd7 {[%emt 0:10:15]} 17. Rad1 {[%emt 0:03:28]} Nf6 {[%emt 0:02:11]} 18. f3 {[%emt 0:00:31]} a6 {[%emt 0:13:43]} 19. Nf2 {[%emt 0:01:25]} b5 {[%emt 0:02:41]} 20. Bb1 {[%emt 0:03:03]} Rac8 {[%emt 0:03:13]} 21. a3 {[%emt 0:03:10]} Bf8 {[%emt 0:02:16]} 22. Ng4 {[%emt 0:06:49]} Nd5 {[%emt 0:04:57]} 23. Qd3 {[%emt 0:08:22]} g6 {[%emt 0:01:19]} 24. Qd2 {[%emt 0:07:18]} h5 {[%emt 0:01:11]} 25. Nf2 {[%emt 0:00:29]} Kg7 {[%emt 0:07:08]} 26. Ne4 {[%emt 0:01:30]} Be7 {[%emt 0:03:25]} 27. Qd3 {[%emt 0:01:48]} Qd7 {[%emt 0:03:02]} 28. Ba2 {[%emt 0:03:38]} Nf6 {[%emt 0:00:23]} 29. Ng5 {[%emt 0:00:39]} Bd5 {[%emt 0:00:16]} 30. Bb1 {[%emt 0:00:39]} Bf8 {[%emt 0:00:05]} 31. Qe3 {[%emt 0:09:07]} Nh7 {[%emt 0:00:54]} 32. Ne4 {[%emt 0:02:05]} f5 {[%emt 0:00:34]} 33. Nf2 {[%emt 0:00:42]} Be7 {[%emt 0:00:24]} 34. Nd3 {[%emt 0:03:32]} Bh4 {[%emt 0:01:00]} 35. Re2 {[%emt 0:00:41]} Bg5 {[%emt 0:00:23]} 36. Qf2 {[%emt 0:01:06]} Bc4 {[%emt 0:00:35]} 37. Ree1 {[%emt 0:05:21]} a5 {[%emt 0:00:32]} 38. Nf4 {[%emt 0:04:26]} Qf7 {[%emt 0:00:30]} 39. Qg3 {[%emt 0:08:56]} Bb3 {[%emt 0:00:11]} 40. Rd3 {[%emt 0:00:00]} e5 {[%emt 0:00:16]} 41. dxe5 {[%emt 0:05:39]} dxe5 {[%emt 0:00:28]} 42. Ne2 {[%emt 0:00:17]} Bc4 {[%emt 0:02:42]} 43. Rd6 {[%emt 0:06:48]} Be7 {[%emt 0:14:35]} 44. Rdd1 {[%emt 0:22:02]} h4 {[%emt 0:03:14]} 45. Qf2 {[%emt 0:00:18]} Bc5 {[%emt 0:00:01]} 46. Nd4 {[%emt 0:00:13]} exd4 {[%emt 0:07:19]} 47. cxd4 {[%emt 0:00:07]} Rxe1+ {[%emt 0:01:02]} 48. Qxe1 {[%emt 0:00:11]} Be7 {[%emt 0:01:18]} 49. Be5+ {[%emt 0:01:10]} Bf6 {[%emt 0:01:25]} 50. Qxa5 {[%emt 0:00:08]} Re8 {[%emt 0:01:02]} 51. Re1 {[%emt 0:00:45]} Bxe5 {[%emt 0:00:33]} 52. dxe5 {[%emt 0:00:08]} Qd5 {[%emt 0:00:58]} 53. Qc3 {[%emt 0:00:25]} Kg8 {[%emt 0:00:50]} 54. Qe3 {[%emt 0:00:32]} Qe6 {[%emt 0:01:52]} 55. Qh6 {[%emt 0:00:19]} Qb6+ {[%emt 0:00:03]} 56. Kh2 {[%emt 0:00:12]} Nf8 {[%emt 0:00:32]} 57. Qxh4 {[%emt 0:00:18]} Nd7 {[%emt 0:01:00]} 58. Qg3 {[%emt 0:01:25]} Kf7 {[%emt 0:00:09]} 59. Qh4 {[%emt 0:00:56]} Kg7 {[%emt 0:00:52]} 60. Qg3 {[%emt 0:01:16]} Qe6 {[%emt 0:00:26]} 61. f4 {[%emt 0:00:04]} Nc5 {[%emt 0:00:31]} 62. Rd1 {[%emt 0:00:08]} Ne4 {[%emt 0:00:45]} 63. Bxe4 {[%emt 0:00:09]} fxe4 {[%emt 0:00:01]} 64. Rd6 {[%emt 0:00:08]} Qf5 {[%emt 0:00:29]} 65. Rf6 {[%emt 0:00:13]} Qh5 {[%emt 0:00:03]} 66. f5 {[%emt 0:00:07]} Bf7 {[%emt 0:00:19]} 67. Qf4 {[%emt 0:00:39]} e3 {[%emt 0:01:22]} 68. Qxe3 {[%emt 0:00:59]} gxf5 {[%emt 0:00:06]} 69. Qg3+ {[%emt 0:00:42]} Kf8 {[%emt 0:01:06]} 70. Qf4 {[%emt 0:00:18]} Re6 {[%emt 0:00:36]} 71. Rxf5 {[%emt 0:00:10]} Qg6 {[%emt 0:00:04]} 72. Rg5 {[%emt 0:00:55]} Qd3 {[%emt 0:00:19]} 73. Rf5 {[%emt 0:00:12]} Qd7 {[%emt 0:00:08]} 74. Rg5 {[%emt 0:01:20]} Ke8 {[%emt 0:00:54]} 75. Qh4 {[%emt 0:01:12]} Qd2 {[%emt 0:00:23]} 76. Qh8+ {[%emt 0:00:35]} Ke7 {[%emt 0:00:01]} 77. Qh4 {[%emt 0:00:05]} Ke8 {[%emt 0:00:04]} 78. Qh8+ {[%emt 0:00:04]} Ke7 {[%emt 0:00:01]} 79. Qh4 {[%emt 0:00:04]} 1/2-1/2

[Event "World Team-ch Women 2017"]
[Site "Khanty-Mansyisk"]
[Date "2017.06.25"]
[Round "8"]
[White "Mammadzada, Gunay"]
[Black "Nemcova, Katerina"]
[Result "1/2-1/2"]
[ECO "C07"]
[WhiteElo "2368"]
[BlackElo "2313"]
[Annotator "NA"]
[PlyCount "69"]
[EventDate "2017.??.??"]
[EventType "team-tourn"]
[EventCountry "RUS"]
[SourceTitle "playchess.com"]
[Source "ChessBase"]
[SourceQuality "1"]
[WhiteTeam "AZE"]
[BlackTeam "USA"]
[WhiteTeamCountry "AZE"]
[BlackTeamCountry "USA"]
[TimeControl "40/5400+30:1800+30"]

1. e4 {[%emt 0:00:00]} e6 {[%emt 0:00:09]} 2. d4 {[%emt 0:00:00]} d5 {[%emt 0:00:05]} 3. Nd2 {[%emt 0:00:00]} c5 {[%emt 0:00:15]} 4. Ngf3 {[%emt 0:01:15]} cxd4 {[%emt 0:00:44]} 5. Nxd4 {[%emt 0:04:14]} Nc6 {[%emt 0:00:17]} 6. Bb5 {[%emt 0:00:11]} Bd7 {[%emt 0:00:19]} 7. Nxc6 {[%emt 0:00:09]} bxc6 {[%emt 0:03:57]} 8. Bd3 {[%emt 0:00:07]} Qc7 {[%emt 0:01:29]} 9. Qe2 {[%emt 0:03:01]} Ne7 {[%emt 0:09:14]} 10. Nf3 {[%emt 0:08:42]} Ng6 {[%emt 0:00:18]} 11. O-O {[%emt 0:17:40]} Bd6 {[%emt 0:04:25]} 12. Re1 {[%emt 0:12:49]} Nf4 {[%emt 0:04:36]} 13. Bxf4 {[%emt 0:00:23]} Bxf4 {[%emt 0:00:05]} 14. g3 {[%emt 0:04:24]} Bh6 {[%emt 0:18:14]} 15. c4 {[%emt 0:06:29]} O-O {[%emt 0:06:19]} 16. Rad1 {[%emt 0:03:34]} g6 {[%emt 0:10:09]} 17. e5 {[%emt 0:03:17]} c5 {[%emt 0:07:44]} 18. h4 {[%emt 0:02:50]} Bc6 {[%emt 0:04:02]} 19. h5 {[%emt 0:02:58]} dxc4 {[%emt 0:09:38]} 20. Be4 {[%emt 0:03:46]} Rab8 {[%emt 0:01:37]} 21. Bxc6 {[%emt 0:05:52]} Qxc6 {[%emt 0:00:01]} 22. Nh2 {[%emt 0:00:06]} Rfd8 {[%emt 0:02:56]} 23. Ng4 {[%emt 0:02:26]} Bg5 {[%emt 0:00:30]} 24. Nf6+ {[%emt 0:01:40]} Bxf6 {[%emt 0:01:06]} 25. exf6 {[%emt 0:00:04]} Rd5 {[%emt 0:00:46]} 26. Qe4 {[%emt 0:03:07]} Rbd8 {[%emt 0:01:22]} 27. hxg6 {[%emt 0:04:14]} hxg6 {[%emt 0:00:17]} 28. Rc1 {[%emt 0:01:43]} e5 {[%emt 0:01:12]} 29. Rcd1 {[%emt 0:01:48]} R8d6 {[%emt 0:08:37]} 30. Rxd5 {[%emt 0:01:11]} Qxd5 {[%emt 0:00:48]} 31. Qxe5 {[%emt 0:01:05]} Qxe5 {[%emt 0:00:05]} 32. Rxe5 {[%emt 0:00:02]} Rxf6 {[%emt 0:03:21]} 33. Rxc5 {[%emt 0:00:07]} Rb6 {[%emt 0:00:12]} 34. Rxc4 {[%emt 0:00:14]} Rxb2 {[%emt 0:00:04]} 35. Ra4 {[%emt 0:00:06]} 1/2-1/2

[Event "World Team-ch Women 2017"]
[Site "Khanty-Mansyisk"]
[Date "2017.06.25"]
[Round "8"]
[White "Foisor, Sabina-Francesca"]
[Black "Mamedjarova, Zeinab"]
[Result "1-0"]
[ECO "D20"]
[WhiteElo "2331"]
[BlackElo "2289"]
[Annotator "NA"]
[PlyCount "87"]
[EventDate "2017.??.??"]
[EventType "team-tourn"]
[EventCountry "RUS"]
[SourceTitle "playchess.com"]
[Source "ChessBase"]
[SourceQuality "1"]
[WhiteTeam "USA"]
[BlackTeam "AZE"]
[WhiteTeamCountry "USA"]
[BlackTeamCountry "AZE"]
[TimeControl "40/5400+30:1800+30"]

1. d4 {[%emt 0:00:00]} d5 {[%emt 0:00:07]} 2. c4 {[%emt 0:00:00]} dxc4 {[%emt 0:00:07]} 3. e4 {[%emt 0:00:00]} Nc6 {[%emt 0:00:11]} 4. Nf3 {[%emt 0:00:00]} Bg4 {[%emt 0:00:08]} 5. d5 {[%emt 0:00:04]} Ne5 {[%emt 0:00:17]} 6. Bf4 {[%emt 0:00:06]} Ng6 {[%emt 0:00:05]} 7. Be3 {[%emt 0:00:06]} Nf6 {[%emt 0:00:32]} 8. Bxc4 {[%emt 0:00:58]} e5 {[%emt 0:01:32]} 9. Nc3 {[%emt 0:00:14]} a6 {[%emt 0:00:27]} 10. Be2 {[%emt 0:00:39]} Bd6 {[%emt 0:00:12]} 11. Nd2 {[%emt 0:03:34]} Bd7 {[%emt 0:00:05]} 12. O-O {[%emt 0:02:10]} O-O {[%emt 0:00:06]} 13. a3 {[%emt 0:03:51]} Qe7 {[%emt 0:00:40]} 14. Rc1 {[%emt 0:05:46]} Kh8 {[%emt 0:01:42]} 15. Re1 {[%emt 0:12:02]} Rad8 {[%emt 0:04:35]} 16. Nc4 {[%emt 0:03:31]} Ne8 {[%emt 0:02:39]} 17. Bg4 {[%emt 0:04:50]} Qh4 {[%emt 0:12:01]} 18. Bxd7 {[%emt 0:02:16]} Rxd7 {[%emt 0:00:01]} 19. Qe2 {[%emt 0:12:13]} f5 {[%emt 0:04:20]} 20. exf5 {[%emt 0:03:54]} Rxf5 {[%emt 0:00:48]} 21. g3 {[%emt 0:00:12]} Qd8 {[%emt 0:11:55]} 22. Na5 {[%emt 0:04:42]} Qa8 {[%emt 0:05:55]} 23. Ne4 {[%emt 0:05:04]} Ne7 {[%emt 0:17:35]} 24. Red1 {[%emt 0:02:17]} Rf8 {[%emt 0:04:52]} 25. Nc4 {[%emt 0:03:06]} Ng6 {[%emt 0:15:12]} 26. Qg4 {[%emt 0:03:01]} Re7 {[%emt 0:03:17]} 27. h4 {[%emt 0:03:50]} Ref7 {[%emt 0:05:53]} 28. Ncxd6 {[%emt 0:02:35]} Nxd6 {[%emt 0:04:51]} 29. Ng5 {[%emt 0:00:09]} Qe8 {[%emt 0:03:05]} 30. Nxf7+ {[%emt 0:05:53]} Rxf7 {[%emt 0:00:04]} 31. Bc5 {[%emt 0:00:47]} Nf5 {[%emt 0:01:15]} 32. d6 {[%emt 0:00:50]} cxd6 {[%emt 0:00:46]} 33. Bxd6 {[%emt 0:00:01]} Rf6 {[%emt 0:01:08]} 34. Bc7 {[%emt 0:01:34]} Nd4 {[%emt 0:00:18]} 35. Rxd4 {[%emt 0:05:26]} exd4 {[%emt 0:00:07]} 36. Qxd4 {[%emt 0:00:02]} Qe2 {[%emt 0:00:46]} 37. Be5 {[%emt 0:01:20]} Rf7 {[%emt 0:00:52]} 38. Rc8+ {[%emt 0:01:11]} Nf8 {[%emt 0:00:12]} 39. Bxg7+ {[%emt 0:00:03]} Kg8 {[%emt 0:00:03]} 40. Bxf8 {[%emt 0:00:00]} Qe1+ {[%emt 0:01:06]} 41. Kg2 {[%emt 0:00:41]} Qe6 {[%emt 0:00:35]} 42. Rd8 {[%emt 0:02:27]} Rxf8 {[%emt 0:04:27]} 43. Rxf8+ {[%emt 0:01:03]} Kxf8 {[%emt 0:00:01]} 44. Qh8+ {[%emt 0:00:22]} 1-0

[Event "World Team-ch Women 2017"]
[Site "Khanty-Mansyisk"]
[Date "2017.06.25"]
[Round "8"]
[White "Yu, Jennifer R"]
[Black "Mammadova, Gulnar"]
[Result "1/2-1/2"]
[ECO "A25"]
[WhiteElo "2319"]
[BlackElo "2362"]
[Annotator "NA"]
[PlyCount "102"]
[EventDate "2017.??.??"]
[EventType "team-tourn"]
[EventCountry "RUS"]
[SourceTitle "playchess.com"]
[Source "ChessBase"]
[SourceQuality "1"]
[WhiteTeam "USA"]
[BlackTeam "AZE"]
[WhiteTeamCountry "USA"]
[BlackTeamCountry "AZE"]
[TimeControl "40/5400+30:1800+30"]

1. c4 {[%emt 0:00:00]} e5 {[%emt 0:00:05]} 2. Nc3 {[%emt 0:00:00]} Nc6 {[%emt 0:00:06]} 3. g3 {[%emt 0:00:00]} g6 {[%emt 0:00:07]} 4. Bg2 {[%emt 0:00:02]} Bg7 {[%emt 0:00:07]} 5. e4 {[%emt 0:00:37]} d6 {[%emt 0:00:48]} 6. Nge2 {[%emt 0:00:16]} Nge7 {[%emt 0:01:39]} 7. d3 {[%emt 0:00:23]} Be6 {[%emt 0:03:04]} 8. Nd5 {[%emt 0:01:33]} O-O {[%emt 0:00:58]} 9. Be3 {[%emt 0:00:42]} Nd4 {[%emt 0:02:23]} 10. O-O {[%emt 0:11:51]} c6 {[%emt 0:02:17]} 11. Nxe7+ {[%emt 0:00:13]} Qxe7 {[%emt 0:00:10]} 12. Nxd4 {[%emt 0:02:56]} exd4 {[%emt 0:00:09]} 13. Bd2 {[%emt 0:00:04]} f5 {[%emt 0:04:50]} 14. Qe2 {[%emt 0:06:34]} Rae8 {[%emt 0:03:32]} 15. Rae1 {[%emt 0:03:56]} Qd7 {[%emt 0:05:41]} 16. b3 {[%emt 0:08:23]} a6 {[%emt 0:03:32]} 17. a4 {[%emt 0:05:38]} b5 {[%emt 0:12:12]} 18. axb5 {[%emt 0:09:34]} axb5 {[%emt 0:01:22]} 19. cxb5 {[%emt 0:05:01]} cxb5 {[%emt 0:01:12]} 20. Qd1 {[%emt 0:00:15]} fxe4 {[%emt 0:08:23]} 21. Rxe4 {[%emt 0:00:59]} d5 {[%emt 0:09:50]} 22. Ree1 {[%emt 0:04:35]} Bg4 {[%emt 0:05:19]} 23. f3 {[%emt 0:00:40]} Bf5 {[%emt 0:00:26]} 24. Bb4 {[%emt 0:02:30]} Rxe1 {[%emt 0:00:26]} 25. Rxe1 {[%emt 0:05:33]} Re8 {[%emt 0:00:47]} 26. g4 {[%emt 0:11:41]} Rxe1+ {[%emt 0:01:59]} 27. Bxe1 {[%emt 0:00:06]} Be6 {[%emt 0:00:06]} 28. Qe2 {[%emt 0:05:58]} Kf7 {[%emt 0:04:59]} 29. Bg3 {[%emt 0:00:36]} Bh6 {[%emt 0:05:36]} 30. h3 {[%emt 0:07:43]} Be3+ {[%emt 0:02:37]} 31. Kh2 {[%emt 0:00:03]} h5 {[%emt 0:04:47]} 32. Be5 {[%emt 0:03:26]} Qe7 {[%emt 0:03:27]} 33. f4 {[%emt 0:01:34]} Qh4 {[%emt 0:06:07]} 34. f5 {[%emt 0:01:27]} gxf5 {[%emt 0:00:30]} 35. gxf5 {[%emt 0:00:48]} Bxf5 {[%emt 0:02:03]} 36. Bxd5+ {[%emt 0:00:04]} Ke7 {[%emt 0:02:29]} 37. Bg2 {[%emt 0:00:16]} Qf2 {[%emt 0:01:10]} 38. Qxf2 {[%emt 0:01:27]} Bxf2 {[%emt 0:00:02]} 39. Bf1 {[%emt 0:00:40]} Ke6 {[%emt 0:02:50]} 40. Bg7 {[%emt 0:00:00]} Kf7 {[%emt 0:01:06]} 41. Be5 {[%emt 0:02:00]} Ke6 {[%emt 0:09:07]} 42. Bg7 {[%emt 0:02:35]} Kf7 {[%emt 0:08:40]} 43. Be5 {[%emt 0:02:07]} Be6 {[%emt 0:01:36]} 44. b4 {[%emt 0:00:51]} Be1 {[%emt 0:00:13]} 45. Bd6 {[%emt 0:08:24]} Bd5 {[%emt 0:00:30]} 46. Bg2 {[%emt 0:02:03]} Ke6 {[%emt 0:01:32]} 47. Bc5 {[%emt 0:03:39]} Bxg2 {[%emt 0:01:18]} 48. Kxg2 {[%emt 0:00:05]} Kf5 {[%emt 0:00:08]} 49. Kf3 {[%emt 0:00:16]} Bd2 {[%emt 0:00:25]} 50. Kg3 {[%emt 0:02:53]} Be1+ {[%emt 0:00:11]} 51. Kf3 {[%emt 0:00:04]} Bd2 {[%emt 0:00:08] Ke4+ Ke5+} 1/2-1/2

[Event "World Team-ch Women 2017"]
[Site "Khanty-Mansyisk"]
[Date "2017.06.25"]
[Round "8"]
[White "Nguyen, Thi Mai Hung"]
[Black "Padmini, Rout"]
[Result "1/2-1/2"]
[ECO "A49"]
[WhiteElo "2301"]
[BlackElo "2375"]
[Annotator "NA"]
[PlyCount "84"]
[EventDate "2017.??.??"]
[EventType "team-tourn"]
[EventCountry "RUS"]
[SourceTitle "playchess.com"]
[Source "ChessBase"]
[SourceQuality "1"]
[WhiteTeam "VIE"]
[BlackTeam "IND"]
[WhiteTeamCountry "VIE"]
[BlackTeamCountry "IND"]
[TimeControl "40/5400+30:1800+30"]

1. d4 {[%emt 0:00:00]} Nf6 {[%emt 0:00:14]} 2. Nf3 {[%emt 0:00:00]} g6 {[%emt 0:00:43]} 3. g3 {[%emt 0:01:32]} Bg7 {[%emt 0:00:07]} 4. Bg2 {[%emt 0:00:03]} O-O {[%emt 0:00:16]} 5. O-O {[%emt 0:00:05]} d6 {[%emt 0:01:30]} 6. a4 {[%emt 0:00:41]} Na6 {[%emt 0:00:50]} 7. Re1 {[%emt 0:04:23]} c5 {[%emt 0:01:39]} 8. c3 {[%emt 0:03:32]} Bf5 {[%emt 0:09:43]} 9. Nbd2 {[%emt 0:04:09]} d5 {[%emt 0:04:18]} 10. Nb3 {[%emt 0:11:58]} cxd4 {[%emt 0:15:05]} 11. Nbxd4 {[%emt 0:09:41]} Bd7 {[%emt 0:02:52]} 12. Ne5 {[%emt 0:04:52]} Bc8 {[%emt 0:00:18]} 13. Nd3 {[%emt 0:02:55]} Ne4 {[%emt 0:04:43]} 14. Be3 {[%emt 0:01:41]} Nc7 {[%emt 0:04:16]} 15. Qb3 {[%emt 0:03:06]} e5 {[%emt 0:21:00]} 16. Nf3 {[%emt 0:05:30]} Re8 {[%emt 0:02:30]} 17. Rad1 {[%emt 0:01:09]} Be6 {[%emt 0:03:28]} 18. Qc2 {[%emt 0:13:51]} f6 {[%emt 0:08:23]} 19. Nc5 {[%emt 0:07:08]} Nxc5 {[%emt 0:00:55]} 20. Bxc5 {[%emt 0:00:07]} Qd7 {[%emt 0:04:20]} 21. Ba3 {[%emt 0:06:52]} Qf7 {[%emt 0:00:22]} 22. Nd2 {[%emt 0:03:14]} f5 {[%emt 0:01:30]} 23. e3 {[%emt 0:04:20]} Rad8 {[%emt 0:00:30]} 24. Rc1 {[%emt 0:04:45]} h6 {[%emt 0:02:11]} 25. c4 {[%emt 0:01:09]} e4 {[%emt 0:02:01]} 26. cxd5 {[%emt 0:01:52]} Nxd5 {[%emt 0:00:10]} 27. Bf1 {[%emt 0:00:57]} Rc8 {[%emt 0:04:08]} 28. Qb1 {[%emt 0:00:29]} Nb6 {[%emt 0:03:12]} 29. a5 {[%emt 0:01:33]} Nd7 {[%emt 0:00:08]} 30. Rxc8 {[%emt 0:01:22]} Rxc8 {[%emt 0:00:09]} 31. Rc1 {[%emt 0:00:10]} Rxc1 {[%emt 0:00:44]} 32. Qxc1 {[%emt 0:00:02]} Ne5 {[%emt 0:00:35]} 33. a6 {[%emt 0:01:22]} bxa6 {[%emt 0:00:39]} 34. Bxa6 {[%emt 0:00:18]} Qd7 {[%emt 0:01:02]} 35. Be2 {[%emt 0:01:48]} a5 {[%emt 0:02:51]} 36. Nb1 {[%emt 0:00:26]} Nd3 {[%emt 0:00:17]} 37. Qd2 {[%emt 0:00:29]} Nxb2 {[%emt 0:00:44]} 38. Qxa5 {[%emt 0:00:21]} Nc4 {[%emt 0:00:14]} 39. Qa8+ {[%emt 0:00:14]} Kh7 {[%emt 0:00:16]} 40. Bf8 {[%emt 0:00:00]} Qb5 {[%emt 0:01:00]} 41. Na3 {[%emt 0:02:27]} Nb6 {[%emt 0:02:01]} 42. Nxb5 {[%emt 0:02:44]} Nxa8 {[%emt 0:00:30]} 1/2-1/2

[Event "World Team-ch Women 2017"]
[Site "Khanty-Mansyisk"]
[Date "2017.06.26"]
[Round "9"]
[White "Nguyen, Thi Mai Hung"]
[Black "Kulon, Klaudia"]
[Result "0-1"]
[ECO "A49"]
[WhiteElo "2301"]
[BlackElo "2381"]
[Annotator "RC"]
[PlyCount "80"]
[EventDate "2017.??.??"]
[EventType "team-tourn"]
[EventCountry "RUS"]
[SourceTitle "playchess.com"]
[Source "ChessBase"]
[SourceQuality "1"]
[WhiteTeam "VIE"]
[BlackTeam "POL"]
[WhiteTeamCountry "VIE"]
[BlackTeamCountry "POL"]
[TimeControl "40/5400+30:1800+30"]

1. d4 {[%emt 0:00:00]} g6 {[%emt 0:00:06]} 2. Nf3 {[%emt 0:00:00]} Nf6 {[%emt 0:00:06]} 3. g3 {[%emt 0:00:08]} Bg7 {[%emt 0:00:05]} 4. Bg2 {[%emt 0:00:04]} O-O {[%emt 0:00:05]} 5. O-O {[%emt 0:00:05]} d6 {[%emt 0:00:02]} 6. a4 {[%emt 0:00:06]} Na6 {[%emt 0:00:10]} 7. Re1 {[%emt 0:00:42]} c5 {[%emt 0:00:05]} 8. d5 {[%emt 0:00:05]} Nc7 {[%emt 0:02:46]} 9. e4 {[%emt 0:01:20]} b6 {[%emt 0:00:45]} 10. Nc3 {[%emt 0:02:55]} Bb7 {[%emt 0:01:50]} 11. Be3 {[%emt 0:06:50]} a6 {[%emt 0:02:22]} 12. Qd2 {[%emt 0:02:00]} Re8 {[%emt 0:03:16]} 13. Bh6 {[%emt 0:01:01]} Bh8 {[%emt 0:01:04]} 14. h3 {[%emt 0:01:27]} b5 {[%emt 0:05:18]} 15. Nh4 {[%emt 0:07:26]} b4 {[%emt 0:04:33]} 16. Nd1 {[%emt 0:01:55]} e6 {[%emt 0:00:36]} 17. dxe6 {[%emt 0:09:41]} Nxe6 {[%emt 0:01:32]} 18. f4 {[%emt 0:14:38]} Nd4 {[%emt 0:01:48]} 19. Nf2 {[%emt 0:01:11]} b3 {[%emt 0:09:44]} 20. Re3 {[%emt 0:07:54]} bxc2 {[%emt 0:01:42]} 21. Rae1 {[%emt 0:04:36]} Qb6 {[%emt 0:02:12]} 22. b3 {[%emt 0:08:04]} Rac8 {[%emt 0:02:28]} 23. Nf3 {[%emt 0:01:53]} d5 {[%emt 0:02:53]} 24. e5 {[%emt 0:11:43]} Ne4 {[%emt 0:00:25]} 25. Nxe4 {[%emt 0:00:39]} dxe4 {[%emt 0:00:03]} 26. Nh4 {[%emt 0:00:37]} c4 {[%emt 0:02:10]} 27. b4 {[%emt 0:02:21]} c3 {[%emt 0:02:21]} 28. Qf2 {[%emt 0:00:18]} Qxb4 {[%emt 0:01:21]} 29. Bxe4 {[%emt 0:03:25]} Bxe4 {[%emt 0:00:32]} 30. Rxe4 {[%emt 0:00:07]} Qb1 {[%emt 0:01:25]} 31. f5 {[%emt 0:02:34]} Rxe5 {[%emt 0:01:25]} 32. Rxe5 {[%emt 0:02:08]} Bxe5 {[%emt 0:00:02]} 33. Kh2 {[%emt 0:00:39]} Bg7 {[%emt 0:01:50]} 34. Bc1 {[%emt 0:04:32]} Nb3 {[%emt 0:01:31]} 35. Qf1 {[%emt 0:01:53]} Nxc1 {[%emt 0:01:04]} 36. Rxc1 {[%emt 0:00:34]} Rb8 {[%emt 0:00:19]} 37. fxg6 {[%emt 0:01:20]} hxg6 {[%emt 0:00:40]} 38. Nxg6 {[%emt 0:00:49]} Qxc1 {[%emt 0:04:14]} 39. Qxc1 {[%emt 0:00:55]} Rb1 {[%emt 0:00:10]} 40. Ne7+ {[%emt 0:00:00]} Kh8 {[%emt 0:00:22]} 0-1